bitfinex-derivatives/quotes_SOLF0:USTF0_20250731
["timestamp","ask_amount","ask_price","bid_price","bid_amount"]
[1753971274024,3.31,177.17,177.14,4.85643]
[1753971274817,6.52592832,177.2,177.14,4.85643]
[1753971275016,3.31,177.21,177.14,4.85643]
[1753971275511,3.31,177.21,177.15,5.6452]
[1753971275723,3.31,177.21,177.14,4.85643]
[1753971275910,5.6441,177.19,177.14,4.85643]
[1753971276112,3.31,177.18,177.14,4.85643]
[1753971276515,3.31,177.17,177.14,4.85643]
[1753971276717,5.6446,177.18,177.14,4.85643]
[1753971276922,6.52592832,177.2,177.14,4.85643]
[1753971276923,3.31,177.15,177.14,4.85643]
[1753971277819,3.31,177.21,177.14,4.85643]
[1753971278126,5.6437,177.21,177.15,7.52592832]
[1753971278318,3.31,177.21,177.16,1.0]
[1753971278524,3.31,177.21,177.17,1.0]
[1753971278722,3.31,177.21,177.18,1.0]
[1753971278921,3.31,177.24,177.19,1.0]
[1753971279128,3.31,177.23,177.21,6.52592832]
[1753971279425,5.6423,177.25,177.21,6.52592832]
[1753971279625,3.31,177.22,177.21,6.52592832]
[1753971280026,3.31,177.22,177.19,5.644]
[1753971280327,3.31,177.21,177.18,107.92]
[1753971280626,3.31,177.19,177.18,107.92]
[1753971281027,3.31,177.26,177.18,107.92]
[1753971281224,3.31,177.26,177.2,6.52592832]
[1753971281524,3.31,177.26,177.19,1.0]
[1753971281525,379.22,177.31,177.22,7.52592832]
[1753971281723,4.29526075,177.3,177.22,7.52592832]
[1753971282028,3.31,177.28,177.22,7.52592832]
[1753971282226,3.31,177.28,177.22,1.0]
[1753971282427,3.31,177.28,177.22,7.52592832]
[1753971282623,3.31,177.26,177.22,7.52592832]
[1753971282926,3.31,177.25,177.22,1.0]
[1753971283129,3.31,177.25,177.22,7.52592832]
[1753971283329,3.31,177.31,177.24,7.52592832]
[1753971283529,3.31,177.31,177.26,6.52592832]
[1753971283730,3.31,177.31,177.25,5.6421]
[1753971283918,6.52592832,177.34,177.26,7.52592832]
[1753971284126,3.31,177.31,177.28,7.52592832]
[1753971284631,3.31,177.3,177.28,1.0]
[1753971284926,5.6394,177.34,177.27,6.52592832]
[1753971285122,3.31,177.32,177.29,1.0]
[1753971285323,3.31,177.32,177.29,7.52592832]
[1753971285532,3.31,177.32,177.29,13.16682832]
[1753971285830,3.31,177.32,177.29,7.52592832]
[1753971286129,3.31,177.35,177.3,1.0]
[1753971286325,3.31,177.37,177.3,1.0]
[1753971286530,6.52592832,177.4,177.3,6.6404]
[1753971286728,3.31,177.38,177.29,6.52592832]
[1753971287024,5.6392,177.35,177.29,12.16662832]
[1753971287235,3.31,177.33,177.29,13.16662832]
[1753971287426,3.31,177.33,177.3,1.0]
[1753971287622,3.31,177.33,177.31,7.52592832]
[1753971287828,3.31,177.33,177.31,6.52592832]
[1753971288624,3.31,177.32,177.31,6.52592832]
[1753971288825,3.31,177.39,177.31,7.52592832]
[1753971289026,4.30961317,177.38,177.33,6.52592832]
[1753971289238,3.31,177.36,177.33,7.52592832]
[1753971289727,3.31,177.36,177.33,6.6396]
[1753971289928,3.31,177.36,177.34,1.0]
[1753971290331,3.31,177.36,177.33,1.0]
[1753971290533,3.31,177.41,177.24,169.9]
[1753971290727,3.31,177.39,177.3,6.52592832]
[1753971290929,5.6389,177.36,177.3,12.16632832]
[1753971291133,3.31,177.34,177.3,13.16632832]
[1753971291327,3.31,177.33,177.3,13.16632832]
[1753971292230,6.52592832,177.4,177.3,6.52592832]
[1753971292435,3.31,177.38,177.32,6.52592832]
[1753971292939,5.6385,177.37,177.32,6.52592832]
[1753971293144,6.52592832,177.4,177.32,6.52592832]
[1753971293343,3.31,177.38,177.32,6.52592832]
[1753971293545,3.31,177.34,177.3,12.16642832]
[1753971293744,3.31,177.34,177.28,6.52592832]
[1753971293941,3.31,177.39,177.3,7.52592832]
[1753971294248,3.31,177.34,177.32,1.0]
[1753971294439,3.31,177.34,177.32,6.52592832]
[1753971295145,3.31,177.32,177.3,1.0]
[1753971295345,3.31,177.32,177.3,7.52592832]
[1753971295743,3.31,177.39,177.3,7.52592832]
[1753971295945,3.31,177.39,177.32,6.52592832]
[1753971296949,5.6389,177.36,177.32,6.52592832]
[1753971297141,3.31,177.35,177.32,6.52592832]
[1753971297339,3.31,177.37,177.34,7.52592832]
[1753971297545,3.31,177.39,177.36,7.52592832]
[1753971297748,3.31,177.38,177.36,6.52592832]
[1753971298046,3.05,177.44,177.37,1.0]
[1753971298250,3.05,177.44,177.38,6.52592832]
[1753971299148,5.6364,177.44,177.38,6.52592832]
[1753971299346,3.05,177.43,177.38,7.51592832]
[1753971299943,3.05,177.42,177.38,6.52592832]
[1753971300145,3.05,177.42,177.36,5.6386]
[1753971300146,3.05,177.42,177.36,6.52592832]
[1753971300345,5.6374,177.41,177.34,12.16522832]
[1753971300642,6.52592832,177.37,177.27,0.99]
[1753971300846,3.05,177.36,177.27,0.99]
[1753971301149,3.05,177.34,177.25,6.52592832]
[1753971301553,3.05,177.34,177.26,0.99]
[1753971301850,6.52592832,177.33,177.18,379.0]
[1753971302044,15.97400841,177.42,177.23,5.6428]
[1753971302045,5.6408,177.3,177.23,5.6428]
[1753971302251,3.05,177.29,177.21,0.99]
[1753971302443,6.52592832,177.27,177.18,486.74]
[1753971302643,3.05,177.23,177.18,379.0]
[1753971302853,3.05,177.26,177.18,379.0]
[1753971303456,3.05,177.26,177.17,7.51592832]
[1753971303750,3.05,177.22,177.16,5.645]
[1753971303953,6.52592832,177.21,177.14,4.85643]
[1753971304155,5.6443,177.19,177.14,4.85643]
[1753971304357,3.05,177.2,177.14,4.85643]
[1753971304550,3.05,177.19,177.14,4.85643]
[1753971304858,8.6954,177.15,177.14,4.85643]
[1753971305054,3.05,177.14,177.05,3.17]
[1753971305258,5.6472,177.1,177.03,5.6492]
[1753971305461,9.57592832,177.09,177.02,3.17]
[1753971305757,3.05,177.08,177.02,3.17]
[1753971305958,3.05,177.08,177.03,5.6492]
[1753971306257,3.05,177.07,177.03,8.8192]
[1753971306458,3.05,177.06,177.03,3.17]
[1753971306758,3.05,177.05,176.99,9.69592832]
[1753971306954,3.05,177.05,176.99,3.17]
[1753971307251,3.05,177.05,176.98,107.74]
[1753971307853,3.05,177.13,176.99,3.17]
[1753971308048,3.05,177.07,176.99,8.8202]
[1753971308450,3.05,177.07,177.0,6.52592832]
[1753971308657,3.05,177.07,177.01,3.17]
[1753971309054,3.05,177.13,176.98,114.26592832]
[1753971309258,3.05,177.07,176.99,3.17]
[1753971309452,3.05,177.13,177.01,6.52592832]
[1753971309653,3.05,177.11,177.05,3.17]
[1753971310164,6.52592832,177.21,177.07,3.17]
[1753971310165,6.52592832,177.15,177.07,3.17]
[1753971310462,3.05,177.14,177.07,3.17]
[1753971310960,3.05,177.14,177.07,8.8179]
[1753971311164,3.05,177.14,177.07,3.17]
[1753971311352,6.52592832,177.14,177.03,9.69592832]
[1753971311553,3.05,177.11,177.03,3.17]
[1753971311863,3.05,177.1,177.03,3.17]
[1753971312165,3.05,177.1,177.02,3.17]
[1753971312364,3.05,177.1,177.04,3.17]
[1753971312558,3.05,177.17,177.08,3.17]
[1753971312767,3.05,177.18,177.12,3.17]
[1753971312955,3.05,177.17,177.14,3.17]
[1753971313154,3.05,177.21,177.15,3.17]
[1753971313663,3.05,177.21,177.11,9.69592832]
[1753971313856,3.05,177.19,177.11,9.69592832]
[1753971314057,3.05,177.19,177.13,6.52592832]
[1753971314254,3.05,177.19,177.16,3.17]
[1753971314567,5.6428,177.23,177.17,3.17]
[1753971314762,3.05,177.21,177.15,6.52592832]
[1753971314963,3.05,177.21,177.13,6.52592832]
[1753971315362,3.05,177.21,177.13,9.69592832]
[1753971315662,3.05,177.21,177.14,3.17]
[1753971315868,3.05,177.19,177.12,3.17]
[1753971316274,3.05,177.19,177.13,6.52592832]
[1753971316459,3.05,177.18,177.14,8.8154]
[1753971316665,3.05,177.25,177.11,6.52592832]
[1753971316866,6.52592832,177.19,177.09,9.69592832]
[1753971317073,3.05,177.18,177.09,9.69592832]
[1753971317266,3.05,177.16,177.08,107.84]
[1753971317666,3.05,177.16,177.07,9.69592832]
[1753971317966,3.05,177.14,177.07,9.69592832]
[1753971318268,3.05,177.14,177.08,3.17]
[1753971318577,3.05,177.14,177.09,5.6473]
[1753971318774,3.05,177.16,177.09,3.17]
[1753971319166,3.05,177.16,177.07,6.52592832]
[1753971319375,3.05,177.13,177.06,3.17]
[1753971319772,3.05,177.13,177.08,5.6473]
[1753971319971,3.05,177.12,177.09,3.17]
[1753971320176,3.05,177.12,177.1,3.17]
[1753971320680,5.6457,177.15,177.08,8.8176]
[1753971320870,3.05,177.15,177.09,3.17]
[1753971321267,3.05,177.18,177.09,3.17]
[1753971321468,3.05,177.17,177.1,6.52592832]
[1753971321673,3.05,177.17,177.11,3.17]
[1753971321870,3.05,177.16,177.11,3.17]
[1753971322067,6.52592832,177.17,177.08,9.69592832]
[1753971322374,5.6458,177.14,177.08,8.8173]
[1753971322582,3.05,177.16,177.08,3.17]
[1753971323076,3.05,177.14,177.09,5.6472]
[1753971323280,3.05,177.16,177.09,3.17]
[1753971323477,3.05,177.16,177.1,6.52592832]
[1753971323679,3.05,177.16,177.11,3.17]
[1753971323979,3.05,177.14,177.12,3.17]
[1753971324174,3.05,177.14,177.09,6.52592832]
[1753971324478,3.05,177.14,177.11,3.17]
[1753971324976,6.52592832,177.19,177.11,3.17]
[1753971325179,3.05,177.16,177.07,9.69592832]
[1753971325678,3.05,177.14,177.07,9.69592832]
[1753971326076,3.05,177.13,177.08,5.6475]
[1753971326279,3.05,177.12,177.08,8.8175]
[1753971326481,3.05,177.11,177.08,8.8175]
[1753971326681,3.05,177.11,177.08,3.17]
[1753971326887,3.05,177.11,177.09,3.17]
[1753971327582,3.05,177.14,177.05,3.17]
[1753971327777,6.52592832,177.15,177.04,6.52592832]
[1753971327980,3.05,177.1,177.02,3.17]
[1753971328281,6.52592832,177.11,177.02,6.52592832]
[1753971328479,3.11,177.12,177.04,9.78592832]
[1753971328677,3.11,177.12,177.04,3.26]
[1753971328878,5.6473,177.09,177.04,3.26]
[1753971329179,3.11,177.08,176.99,6.52592832]
[1753971329380,5.6481,177.07,177.01,5.6497]
[1753971329580,4.70030841,177.14,176.97,379.08]
[1753971329775,4.70030841,177.12,177.1,3.26]
[1753971329983,5.6438,177.2,177.14,3.26]
[1753971330183,7.62647186,177.19,177.15,3.26]
[1753971330385,3.11,177.18,177.15,3.26]
[1753971330581,3.11,177.23,177.14,3.26]
[1753971330886,3.11,177.21,177.14,3.26]
[1753971331886,3.11,177.21,177.16,9.94010674]
[1753971332180,4.70030841,177.3,177.17,3.26]
[1753971332181,3.11,177.23,177.17,3.26]
[1753971332884,3.11,177.23,177.15,215.41670584]
[1753971333082,4.70030841,177.31,177.21,3.26]
[1753971333278,3.11,177.29,177.22,5.6431]
[1753971333480,3.11,177.27,177.21,3.26]
[1753971333684,4.43901589,177.26,177.22,3.26]
[1753971333885,7.54901589,177.25,177.21,3.26]
[1753971334085,3.11,177.27,177.21,3.26]
[1753971334287,4.44014961,177.26,177.21,3.26]
[1753971334485,3.11,177.27,177.24,3.26]
[1753971334877,4.70030841,177.33,177.24,3.26]
[1753971334878,3.11,177.26,177.24,3.26]
[1753971335381,4.70030841,177.33,177.24,3.26]
[1753971335580,3.11,177.31,177.24,3.26]
[1753971335787,4.44373247,177.3,177.24,3.26]
[1753971335978,3.11,177.28,177.21,3.26]
[1753971336179,4.4437325,177.27,177.21,3.26]
[1753971336389,3.11,177.28,177.21,3.26]
[1753971336688,7.55575625,177.27,177.21,3.26]
[1753971336888,3.11,177.27,177.21,3.26]
[1753971337089,3.11,177.27,177.25,3.26]
[1753971337383,9.94010674,177.34,177.02,378.05026625]
[1753971337384,3.11,177.33,177.02,378.05026625]
[1753971337585,3.11,177.23,177.16,3.26]
[1753971338287,3.11,177.23,177.16,13.20010674]
[1753971338684,3.11,177.22,177.19,3.26]
[1753971339280,3.11,177.29,177.2,3.26]
[1753971339480,3.11,177.27,177.17,3.26]
[1753971339685,5.6437,177.21,177.15,3.26]
[1753971339893,9.94010674,177.25,177.15,3.26]
[1753971340096,3.11,177.24,177.15,3.26]
[1753971340388,3.11,177.2,177.13,3.26]
[1753971340991,3.11,177.19,177.13,8.9058]
[1753971341186,3.11,177.19,177.13,3.26]
[1753971341395,13.05010674,177.19,177.1,151.16736538]
[1753971341594,3.11,177.18,177.1,151.16736538]
[1753971341996,3.11,177.16,177.1,156.81406538]
[1753971342691,3.11,177.21,177.12,9.94010674]
[1753971342990,3.11,177.24,177.16,3.26]
[1753971343390,3.11,177.23,177.16,3.26]
[1753971343895,3.11,177.23,177.17,5.6445]
[1753971344095,3.11,177.23,177.16,3.26]
[1753971344390,3.11,177.23,177.18,5.6442]
[1753971344595,3.11,177.22,177.19,3.26]
[1753971344794,3.11,177.28,177.19,3.26]
[1753971344990,3.11,177.28,177.21,5.6434]
[1753971345390,3.11,177.27,177.2,3.26]
[1753971345599,3.11,177.27,177.17,3.26]
[1753971346095,3.11,177.27,177.18,5.6444]
[1753971346490,3.11,177.22,177.16,5.645]
[1753971346896,3.11,177.22,177.14,3.26]
[1753971347096,3.11,177.19,177.15,5.6452]
[1753971347292,3.11,177.19,177.11,3.26]
[1753971347497,5.6448,177.17,177.11,3.26]
[1753971347797,3.11,177.19,177.11,3.26]
[1753971348299,3.11,177.17,177.11,3.26]
[1753971348797,3.11,177.2,177.14,3.26]
[1753971349394,3.11,177.2,177.13,3.26]
[1753971349604,9.94010674,177.28,177.15,9.94010674]
[1753971349793,3.11,177.22,177.15,9.94010674]
[1753971349995,3.11,177.22,177.19,3.26]
[1753971350194,3.11,177.27,177.16,3.26]
[1753971350497,3.11,177.23,177.2,3.26]
[1753971350697,3.11,177.22,177.16,3.26]
[1753971350899,5.6428,177.23,177.17,5.6444]
[1753971351097,3.11,177.2,177.17,3.26]
[1753971351302,9.94010674,177.25,177.13,109.26]
[1753971351491,5.6439,177.2,177.15,5.6451]
[1753971351695,3.11,177.24,177.14,3.26]
[1753971352096,3.11,177.21,177.16,5.6448]
[1753971352389,3.11,177.21,177.16,8.9048]
[1753971352598,3.11,177.21,177.14,3.26]
[1753971352799,3.11,177.19,177.15,5.6452]
[1753971353103,3.11,177.17,177.15,5.6452]
[1753971353302,3.11,177.16,177.14,8.9057]
[1753971353602,3.11,177.16,177.14,5.6457]
[1753971353801,3.11,177.16,177.13,112.52]
[1753971354200,5.6444,177.19,177.13,112.52]
[1753971354402,3.11,177.15,177.13,109.26]
[1753971354701,9.94010674,177.22,177.13,109.26]
[1753971354702,3.11,177.14,177.13,109.26]
[1753971354900,3.11,177.14,177.11,3.26]
[1753971355098,5.6452,177.16,177.1,147.90736538]
[1753971355599,3.11,177.13,177.1,147.90736538]
[1753971356001,5.6458,177.14,177.1,147.90736538]
[1753971356201,3.11,177.11,177.1,147.90736538]
[1753971356703,3.11,177.18,177.1,153.55436538]
[1753971356904,3.11,177.16,177.1,153.55436538]
[1753971357506,3.11,177.15,177.07,3.26]
[1753971357704,3.11,177.15,177.04,122.12010674]
[1753971357900,5.6468,177.11,177.04,122.12010674]
[1753971358207,3.08,177.1,177.07,5.6477]
[1753971358394,3.08,177.09,177.04,108.92]
[1753971358600,3.08,177.08,177.04,111.98]
[1753971358801,3.08,177.07,177.06,5.6482]
[1753971359002,3.08,177.12,177.01,3.06]
[1753971359302,3.08,177.12,177.04,5.6486]
[1753971359605,11.2889,177.18,177.01,3.06]
[1753971359606,3.08,177.09,177.01,3.06]
[1753971360204,3.08,177.08,177.02,9.94010674]
[1753971360506,3.08,177.15,177.03,3.06]
[1753971360808,3.08,177.15,177.04,108.82]
[1753971361105,3.08,177.15,177.05,3.06]
[1753971361307,3.08,177.11,177.05,3.06]
[1753971361805,9.94010674,177.1,177.0,3.06]
[1753971361998,3.08,177.09,177.0,3.06]
[1753971362199,5.6479,177.08,177.04,5.6488]
[1753971362400,3.08,177.07,176.98,3.06]
[1753971362904,3.08,177.06,176.97,108.74]
[1753971363308,3.08,177.06,176.95,3.06]
[1753971363808,9.94010674,177.07,176.95,3.06]
[1753971363999,3.08,177.06,176.95,3.06]
[1753971364410,3.08,177.01,176.95,3.06]
[1753971364607,3.08,177.01,176.93,3.06]
[1753971364804,3.08,177.0,176.93,3.06]
[1753971365010,3.08,177.0,176.91,108.84]
[1753971365202,3.08,177.0,176.92,3.06]
[1753971366015,5.6506,176.99,176.95,5.6517]
[1753971366210,9.94010674,177.01,176.95,5.6517]
[1753971366419,9.94010674,177.01,176.92,3.06]
[1753971366420,3.08,177.0,176.89,382.52]
[1753971366713,3.08,176.96,176.89,379.46]
[1753971367116,5.652,176.95,176.88,111.82]
[1753971367312,9.94010674,176.98,176.88,111.82]
[1753971367313,3.08,176.94,176.88,111.82]
[1753971367516,3.08,176.94,176.88,3.06]
[1753971367712,3.08,176.93,176.91,5.6528]
[1753971367914,3.08,176.94,176.84,108.76]
[1753971368117,3.08,176.94,176.85,3.06]
[1753971368416,3.08,176.92,176.85,3.06]
[1753971368815,9.94010674,176.95,176.85,3.06]
[1753971369013,3.08,176.91,176.85,3.06]
[1753971369218,3.08,176.91,176.88,5.654]
[1753971369415,3.08,176.91,176.88,3.06]
[1753971369719,5.6527,176.93,176.88,8.714]
[1753971370017,3.08,176.91,176.88,8.714]
[1753971370220,3.08,176.91,176.88,3.06]
[1753971370418,3.08,176.94,176.84,108.76]
[1753971370718,3.08,176.94,176.85,3.06]
[1753971371018,9.94010674,176.92,176.81,108.6]
[1753971371221,3.08,176.91,176.82,3.06]
[1753971371621,3.08,176.87,176.82,3.06]
[1753971371818,3.08,176.91,176.81,3.06]
[1753971372115,5.6543,176.88,176.82,5.6557]
[1753971372321,3.08,176.87,176.81,3.06]
[1753971372716,3.08,176.9,176.87,3.06]
[1753971372915,3.08,176.9,176.83,9.94010674]
[1753971373115,5.6531,176.91,176.86,5.6544]
[1753971373317,3.08,176.9,176.8,9.94010674]
[1753971373511,9.94010674,176.83,176.64,33.67417721]
[1753971373717,3.08,176.79,176.7,3.06]
[1753971374116,5.6581,176.76,176.7,3.06]
[1753971374416,3.08,176.76,176.62,9.94010674]
[1753971374617,3.08,176.73,176.62,9.94010674]
[1753971374819,3.08,176.73,176.66,3.06]
[1753971376116,3.08,176.73,176.67,6.57961861]
[1753971376320,3.08,176.77,176.68,3.06]
[1753971376525,3.08,176.75,176.65,6.57961861]
[1753971376723,3.08,176.73,176.66,3.06]
[1753971377024,3.08,176.73,176.62,3.06]
[1753971377221,5.6601,176.69,176.62,8.7222]
[1753971377423,3.08,176.72,176.64,3.06]
[1753971377724,3.08,176.74,176.67,3.06]
[1753971378023,3.08,176.77,176.7,3.06]
[1753971378730,3.08,176.77,176.67,3.06]
[1753971379020,3.08,176.74,176.67,3.06]
[1753971379317,3.08,176.74,176.64,3.06]
[1753971379519,3.08,176.72,176.64,9.99842798]
[1753971379720,3.08,176.72,176.65,3.06]
[1753971379920,3.08,176.72,176.66,5.661]
[1753971380127,3.08,176.72,176.65,3.06]
[1753971380332,9.99842798,176.75,176.65,3.06]
[1753971380517,9.99842798,176.75,176.62,109.04]
[1753971380518,9.99842798,176.81,176.68,3.06]
[1753971380716,3.08,176.79,176.71,3.06]
[1753971380925,5.6575,176.78,176.71,3.06]
[1753971381125,3.08,176.79,176.71,3.06]
[1753971381525,3.08,176.82,176.71,3.06]
[1753971381726,3.08,176.82,176.7,109.18]
[1753971381727,3.08,176.82,176.73,3.06]
[1753971381923,3.08,176.82,176.76,5.6577]
[1753971382119,9.99842798,176.84,176.72,9.99842798]
[1753971382326,0.27703,176.81,176.79,3.06]
[1753971382522,3.08,176.79,176.73,3.06]
[1753971383126,3.08,176.77,176.73,3.06]
[1753971383325,3.35703,176.81,176.72,3.06]
[1753971383727,3.08,176.8,176.72,3.06]
[1753971384430,3.08,176.8,176.68,9.99842798]
[1753971384734,0.27703,176.81,176.71,5.6592]
[1753971384924,3.08,176.79,176.71,3.06]
[1753971385623,5.6575,176.78,176.71,3.06]
[1753971385821,3.08,176.77,176.71,3.06]
[1753971386825,9.99842798,176.8,176.71,3.06]
[1753971386826,3.08,176.8,176.72,3.06]
[1753971387433,3.08,176.79,176.73,5.6585]
[1753971387930,3.08,176.79,176.72,3.06]
[1753971388430,9.99842798,176.8,176.72,3.06]
[1753971388431,3.03,176.76,176.72,3.06]
[1753971388629,3.03,176.76,176.73,3.16]
[1753971389322,3.03,176.75,176.71,5.6594]
[1753971389527,3.03,176.75,176.72,3.16]
[1753971389831,9.99842798,176.8,176.68,9.99842798]
[1753971390032,3.03,176.79,176.69,3.16]
[1753971390226,3.03,176.79,176.72,3.16]
[1753971390628,3.03,176.79,176.73,3.16]
[1753971390823,3.03,176.79,176.7,13.15842798]
[1753971391626,3.03,176.76,176.67,3.16]
[1753971392538,3.03,176.75,176.68,3.16]
[1753971393032,3.03,176.8,176.7,3.16]
[1753971393633,8.6878,176.77,176.71,8.8192]
[1753971393838,3.03,176.77,176.71,3.16]
[1753971394040,0.27703,176.81,176.73,3.16]
[1753971394041,3.30703,176.81,176.73,3.16]
[1753971394332,0.27703,176.81,176.76,3.16]
[1753971394644,3.03,176.88,176.8,3.16]
[1753971394936,3.03,176.91,176.82,3.16]
[1753971395134,3.03,176.93,176.84,3.16]
[1753971395330,380.26,176.99,176.81,9.99842798]
[1753971395331,3.03,176.9,176.81,3.16]
[1753971395732,3.03,176.9,176.69,397.21]
[1753971395733,9.99842798,176.88,176.79,3.16]
[1753971395934,3.03,176.87,176.79,3.16]
[1753971396134,9.99842798,176.88,176.79,8.8168]
[1753971396135,5.6553,176.85,176.79,8.8168]
[1753971396436,3.03,176.83,176.79,5.6568]
[1753971396636,3.03,176.88,176.79,3.16]
[1753971396840,3.03,176.88,176.81,9.99842798]
[1753971397035,3.03,176.88,176.82,3.16]
[1753971397233,3.03,176.87,176.73,112.42]
[1753971397437,3.03,176.86,176.76,3.16]
[1753971397832,5.6551,176.85,176.79,5.6567]
[1753971398033,9.99842798,176.88,176.79,3.16]
[1753971398229,3.03,176.83,176.79,3.16]
[1753971398630,5.6556,176.84,176.79,3.16]
[1753971398838,3.03,176.82,176.79,3.16]
[1753971399336,3.03,176.81,176.75,9.99842798]
[1753971399836,3.03,176.81,176.78,8.8171]
[1753971400039,3.03,176.81,176.75,3.16]
[1753971400437,8.6865,176.81,176.75,8.8179]
[1753971400637,3.03,176.79,176.73,3.16]
[1753971400939,9.99842798,176.82,176.74,5.6584]
[1753971401133,9.99842798,176.82,176.69,390.25842798]
[1753971401134,3.03,176.8,176.69,390.25842798]
[1753971401335,3.03,176.78,176.7,3.16]
[1753971401535,3.03,176.76,176.7,3.16]
[1753971401737,13.02842798,176.79,176.7,3.16]
[1753971402040,3.03,176.77,176.7,3.16]
[1753971402247,3.03,176.75,176.72,8.819]
[1753971402540,3.03,176.75,176.72,3.16]
[1753971402939,3.03,176.75,176.66,9.99842798]
[1753971402940,4.39021917,176.74,176.6,3.16]
[1753971403141,5.6595,176.71,176.66,5.6609]
[1753971403345,3.03,176.7,176.67,3.16]
[1753971403538,9.36855406,176.81,176.59,380.2]
[1753971403539,3.03,176.68,176.61,3.16]
[1753971403837,7.42330644,176.67,176.61,3.16]
[1753971404030,3.03,176.67,176.61,3.16]
[1753971404232,3.03,176.67,176.63,5.6619]
[1753971404440,7.42523246,176.66,176.63,5.6619]
[1753971404640,3.03,176.66,176.63,5.6619]
[1753971404941,3.03,176.65,176.61,3.16]
[1753971405133,7.42537739,176.64,176.59,380.2]
[1753971405337,4.70030841,176.69,176.6,3.16]
[1753971405338,3.03,176.69,176.6,3.16]
[1753971405543,3.03,176.66,176.6,8.8229]
[1753971405857,3.03,176.64,176.61,3.16]
[1753971406243,3.03,176.63,176.61,3.16]
[1753971406439,4.70030841,176.69,176.59,383.36]
[1753971406640,3.03,176.67,176.59,380.2]
[1753971406839,3.03,176.64,176.55,3.16]
[1753971407034,3.03,176.62,176.55,3.16]
[1753971407233,4.39245519,176.61,176.57,5.6638]
[1753971407436,7.42245519,176.6,176.54,119.39842798]
[1753971407637,3.03,176.6,176.58,3.16]
[1753971407946,3.03,176.6,176.55,3.16]
[1753971408142,3.03,176.6,176.56,3.16]
[1753971408443,4.70030841,176.65,176.56,3.16]
[1753971408444,7.43289873,176.59,176.56,3.16]
[1753971408640,3.03,176.59,176.56,3.16]
[1753971408839,3.03,176.61,176.55,5.6645]
[1753971409045,4.4027833,176.6,176.56,9.99842798]
[1753971409347,4.40685888,176.59,176.54,9.99842798]
[1753971409535,4.40685888,176.58,176.57,3.16]
[1753971410541,4.40685888,176.58,176.57,8.8239]
[1753971411252,4.40685888,176.58,176.57,5.6639]
[1753971411449,4.40685888,176.58,176.57,8.8239]
[1753971411954,4.70030841,176.64,176.6,5.6627]
[1753971412242,3.03,176.61,176.58,3.16]
[1753971412443,3.03,176.64,176.58,3.16]